bitfinex/quotes_BTCUSD_20241128
["timestamp","ask_amount","ask_price","bid_price","bid_amount"]
[1732809775140,0.2308196,95266.0,95265.0,0.00828772]
[1732809775406,0.2308196,95266.0,95265.0,0.01879408]
[1732809776290,0.2308196,95266.0,95265.0,0.00828772]
[1732809776510,0.2308196,95266.0,95265.0,0.01879407]
[1732809776943,0.2308196,95266.0,95265.0,0.00828772]
[1732809779938,0.2308196,95266.0,95265.0,0.0082878]
[1732809780178,0.2308196,95266.0,95265.0,0.00828783]
[1732809780864,0.2308196,95266.0,95265.0,0.0017212]
[1732809781090,0.2308196,95266.0,95265.0,0.00828776]
[1732809781322,0.2318196,95266.0,95265.0,0.0017212]
[1732809781552,0.2318196,95266.0,95265.0,0.00828777]
[1732809781771,0.2308196,95266.0,95265.0,0.00828777]
[1732809782006,0.2318196,95266.0,95265.0,0.00828777]
[1732809782955,0.2318196,95266.0,95265.0,0.00853683]
[1732809784061,0.2318196,95266.0,95265.0,0.01904302]
[1732809788118,0.2318196,95266.0,95265.0,0.01904327]
[1732809788393,0.2318196,95266.0,95265.0,0.01904321]
[1732809788608,0.33466481,95266.0,95265.0,0.00197026]
[1732809788829,0.33466481,95266.0,95235.0,0.02406688]
[1732809788830,0.01,95264.0,95235.0,0.02406688]
[1732809789051,0.01,95264.0,95224.0,0.14110781]
[1732809789052,0.105001,95237.0,95236.0,0.03282027]
[1732809789283,0.105001,95237.0,95236.0,0.01707602]
[1732809790155,0.105001,95237.0,95236.0,0.01807602]
[1732809790875,0.105001,95237.0,95236.0,0.01907602]
[1732809791309,0.105001,95237.0,95236.0,0.01907704]
[1732809793034,0.00186438,95239.0,95236.0,0.01907704]
[1732809793294,0.209949,95261.0,95237.0,0.01707704]
[1732809793295,0.00186438,95249.0,95237.0,0.01707704]
[1732809793475,0.00186438,95248.0,95238.0,0.01707704]
[1732809793710,0.20998,95247.0,95239.0,0.01707704]
[1732809793939,0.209969,95252.0,95236.0,0.212003]
[1732809793940,0.104994,95243.0,95240.0,0.02493616]
[1732809794155,0.104994,95243.0,95241.0,0.02493616]
[1732809794366,0.00186438,95246.0,95242.0,0.01442721]
[1732809794637,0.104993,95244.0,95243.0,0.01442583]
[1732809794837,0.314979,95244.0,95243.0,0.01442583]
[1732809796071,0.314979,95244.0,95243.0,0.00656778]
[1732809796291,0.1858,95238.0,95237.0,0.001721]
[1732809796518,0.1858,95238.0,95237.0,0.00828932]
[1732809796730,0.23746438,95238.0,95237.0,0.00828932]
[1732809796950,0.2356,95238.0,95237.0,0.00828932]
[1732809797431,0.2356,95238.0,95237.0,0.001721]
[1732809799023,0.2356,95238.0,95237.0,0.002721]
[1732809800363,0.2356,95238.0,95237.0,0.003721]
[1732809803868,0.209997,95240.0,95237.0,0.003721]
[1732809803869,0.01,95257.0,95237.0,0.003721]
[1732809804092,0.10498,95256.0,95251.0,0.104984]
[1732809804345,0.078,95259.0,95238.0,0.10284521]
[1732809804346,0.209958,95257.0,95238.0,0.10284521]
[1732809804566,0.00186438,95256.0,95239.0,0.09421447]
[1732809804796,0.00186438,95256.0,95238.0,0.10284521]
[1732809804797,0.00186438,95256.0,95252.0,0.0065671]
[1732809805017,0.00186438,95256.0,95253.0,0.01707348]
[1732809805278,0.078,95259.0,95254.0,0.00656672]
[1732809805279,0.002,95255.0,95254.0,0.00656672]
[1732809805518,0.00186438,95257.0,95254.0,0.00656672]
[1732809805745,0.10684438,95256.0,95255.0,0.00656672]
[1732809805996,0.00386438,95256.0,95255.0,0.00656672]
[1732809806235,0.10884438,95256.0,95255.0,0.00656672]
[1732809807101,0.00186438,95256.0,95255.0,0.00656672]
[1732809807600,0.001,95257.0,95256.0,0.10498]
[1732809808055,0.20994,95265.0,95256.0,0.0105065]
[1732809808056,0.104977,95259.0,95256.0,0.0105065]
[1732809808278,0.20994,95265.0,95257.0,0.01707295]
[1732809808279,0.00186438,95260.0,95257.0,0.01707295]
[1732809808503,0.10684038,95260.0,95258.0,0.01707295]
[1732809808735,0.10684038,95260.0,95250.0,0.209971]
[1732809808736,0.00186438,95260.0,95259.0,0.01707295]
[1732809809432,0.00186438,95264.0,95259.0,0.01707295]
[1732809809662,0.21180938,95263.0,95253.0,0.104983]
[1732809809891,0.209947,95262.0,95254.0,0.0170727]
[1732809810164,0.104977,95259.0,95255.0,0.0170727]
[1732809810397,0.00186438,95261.0,95256.0,0.0170727]
[1732809810637,0.00186438,95261.0,95247.0,0.0139812]
[1732809810638,0.00186438,95261.0,95257.0,0.0170727]
[1732809810862,0.104987,95250.0,95246.0,0.09419535]
[1732809811082,0.0008615,95265.0,95247.0,0.12206256]
[1732809811083,0.104985,95252.0,95247.0,0.12206256]
[1732809811302,0.104985,95252.0,95246.0,0.10284521]
[1732809811303,0.15278699,95260.0,95248.0,0.01707356]
[1732809811580,0.15278699,95260.0,95249.0,0.01707356]
[1732809811581,0.104986,95251.0,95249.0,0.01707356]
[1732809811804,0.104986,95251.0,95246.0,0.20783521]
[1732809811805,0.104983,95253.0,95250.0,0.01707356]
[1732809811948,0.104985,95252.0,95251.0,0.01707356]
[1732809812178,0.00186438,95256.0,95251.0,0.01707356]
[1732809812400,0.209952,95260.0,95248.0,0.209978]
[1732809812401,0.00186438,95259.0,95253.0,0.209967]
[1732809812568,0.00186438,95259.0,95248.0,0.209978]
[1732809812569,0.00186438,95259.0,95254.0,0.12205456]
[1732809813024,0.00186438,95262.0,95255.0,0.01707356]
[1732809813233,0.2107985,95266.0,95251.0,0.002]
[1732809813234,0.104984,95252.0,95251.0,0.002]
[1732809813436,0.104984,95252.0,95251.0,0.01807298]
[1732809814079,0.104984,95252.0,95251.0,0.00756653]
[1732809814320,0.10684838,95252.0,95251.0,0.00756653]
[1732809814527,0.10684838,95252.0,95251.0,0.00656653]
[1732809816413,0.10784838,95252.0,95251.0,0.00656653]
[1732809817823,0.105984,95252.0,95251.0,0.00656653]
[1732809818042,0.10784838,95252.0,95251.0,0.00656653]
[1732809818269,0.001,95252.0,95251.0,0.00656653]
[1732809818490,0.001,95252.0,95251.0,0.01707365]
[1732809819167,0.104982,95255.0,95251.0,0.01707365]
[1732809819393,0.104982,95255.0,95252.0,0.01707365]
[1732809819622,0.20995,95261.0,95245.0,0.419968]
[1732809819623,0.104978,95258.0,95254.0,0.104981]
[1732809819857,0.104978,95258.0,95255.0,0.01707365]
[1732809820080,0.104977,95259.0,95256.0,0.01707365]
[1732809820347,0.104977,95259.0,95257.0,0.01707365]
[1732809820576,0.00186438,95260.0,95258.0,0.00656653]
[1732809820815,0.07726438,95262.0,95259.0,0.00656653]
[1732809821035,0.10683938,95261.0,95260.0,0.00656653]
[1732809821718,0.00186438,95261.0,95260.0,0.00656653]
[1732809821947,0.21266788,95265.0,95260.0,0.00656653]
[1732809822177,0.21266788,95265.0,95253.0,0.209965]
[1732809822178,0.104974,95262.0,95261.0,0.00656653]
[1732809823091,0.21180638,95264.0,95261.0,0.00656653]
[1732809823318,0.00186438,95264.0,95262.0,0.00656653]
[1732809823541,0.0008615,95265.0,95264.0,0.104971]
[1732809823768,0.0008615,95265.0,95264.0,0.0170724]
[1732809824197,0.10769588,95265.0,95264.0,0.0170724]
[1732809824414,0.104972,95263.0,95257.0,0.104978]
[1732809824651,0.0008615,95265.0,95258.0,0.10284521]
[1732809824887,0.0008615,95265.0,95259.0,0.2270241]
[1732809825114,0.0018615,95265.0,95260.0,0.2270231]
[1732809825336,0.0018615,95265.0,95262.0,0.104973]
[1732809825558,0.0018615,95265.0,95263.0,0.0170721]
[1732809825789,0.0008615,95265.0,95264.0,0.0170721]
[1732809826021,0.0018615,95265.0,95264.0,0.0170721]
[1732809826895,0.0018615,95265.0,95264.0,0.1220431]
[1732809826896,0.0018615,95265.0,95264.0,0.0170721]
[1732809827145,0.0008615,95265.0,95264.0,0.0170721]
[1732809827366,0.0008615,95265.0,95264.0,0.1220431]
[1732809827594,0.0018615,95265.0,95264.0,0.12204283]
[1732809828058,0.0008615,95265.0,95264.0,0.01678379]
[1732809828519,0.0018615,95265.0,95264.0,0.12175479]
[1732809828753,0.0018615,95265.0,95264.0,0.01678379]
[1732809829667,0.0018615,95265.0,95264.0,0.12175479]
[1732809831071,0.0018615,95265.0,95264.0,0.11153709]
[1732809832288,0.0018615,95265.0,95264.0,0.12466927]
[1732809833284,0.104955,95279.0,95264.0,0.12254348]
[1732809833525,0.209909,95279.0,95269.0,0.00831526]
[1732809833764,0.00186438,95278.0,95273.0,0.10496]
[1732809833991,0.104957,95277.0,95274.0,0.01969827]
[1732809834215,0.104957,95277.0,95275.0,0.00656609]
[1732809834465,0.104957,95277.0,95276.0,0.00656609]
[1732809836085,0.104957,95277.0,95276.0,0.00756609]
[1732809836522,0.15362138,95277.0,95276.0,0.00756609]
[1732809837233,0.15362138,95277.0,95276.0,0.00956609]
[1732809837447,0.15362138,95277.0,95276.0,0.00856609]
[1732809837676,0.15362138,95277.0,95276.0,0.00656609]
[1732809839460,0.15362138,95277.0,95276.0,0.01707132]
[1732809840868,0.28929,95288.0,95279.0,0.104953]
[1732809841127,0.0454,95291.0,95283.0,0.10495]
[1732809841349,0.0454,95291.0,95283.0,0.01707132]
[1732809841350,0.21215338,95289.0,95283.0,0.01707132]
[1732809841562,0.104947,95286.0,95283.0,0.01707132]
[1732809842015,0.00226438,95289.0,95283.0,0.12202132]
[1732809842266,0.104945,95288.0,95283.0,0.12202132]
[1732809842757,0.0004,95289.0,95283.0,0.12202132]
[1732809843008,0.0004,95289.0,95283.0,0.2248634]
[1732809843228,0.0004,95289.0,95288.0,0.188245]
[1732809843446,0.0008616,95294.0,95293.0,0.104939]
[1732809843680,0.0008616,95294.0,95293.0,0.4139441]
[1732809843932,0.0008616,95294.0,95293.0,0.46000321]
[1732809844158,0.0008616,95294.0,95293.0,0.3748524]
[1732809844413,0.0008616,95294.0,95293.0,0.61982571]
[1732809844879,0.0008616,95294.0,95293.0,0.3998524]
[1732809845135,0.0008616,95294.0,95293.0,0.2398524]
[1732809845589,0.0008616,95294.0,95293.0,0.2338524]
[1732809845815,0.0008616,95294.0,95293.0,0.2428524]
[1732809846072,0.0008616,95294.0,95293.0,0.37478977]
[1732809846287,0.0008616,95294.0,95293.0,0.2428524]
[1732809846516,0.0008616,95294.0,95293.0,0.42174966]
[1732809846973,0.0008616,95294.0,95293.0,0.43074966]
[1732809847210,0.0008616,95294.0,95293.0,0.42174966]
[1732809847471,0.0008616,95294.0,95293.0,0.2398524]
[1732809847709,0.0008616,95294.0,95293.0,0.57763767]
[1732809847952,0.0008616,95294.0,95293.0,0.57763709]
[1732809848173,0.0008616,95294.0,95293.0,0.3898524]
[1732809848391,0.0004,95309.0,95308.0,0.104922]
[1732809848604,0.0004,95309.0,95308.0,0.2248354]
[1732809849344,0.0004,95309.0,95308.0,0.22482951]
[1732809850028,0.0004,95309.0,95308.0,0.22882951]
[1732809850264,0.0004,95309.0,95308.0,0.12390751]
[1732809850494,0.105321,95309.0,95308.0,0.0210623]
[1732809851174,0.105321,95309.0,95308.0,0.0230623]
[1732809851616,0.105321,95309.0,95308.0,0.01256242]
[1732809852261,0.105321,95309.0,95308.0,0.0230623]
[1732809852557,0.105321,95309.0,95308.0,0.01256302]
[1732809852796,0.233021,95309.0,95308.0,0.01256302]
[1732809853034,0.233021,95309.0,95308.0,0.006]
[1732809854624,0.383021,95309.0,95308.0,0.006]
[1732809855340,0.51886621,95309.0,95308.0,0.004]
[1732809855579,0.0787,95277.0,95266.0,0.001723]
[1732809855802,0.104968,95267.0,95266.0,0.001723]
[1732809856030,0.104968,95267.0,95266.0,0.01879223]
[1732809857690,0.104968,95267.0,95266.0,0.02379223]
[1732809858404,0.209919,95275.0,95266.0,0.02579223]
[1732809858666,0.22352823,95284.0,95266.0,0.02579223]
[1732809858667,0.209901,95283.0,95268.0,0.104967]
[1732809858889,0.085365,95286.0,95285.0,0.104948]
[1732809858890,0.009865,95286.0,95285.0,0.104948]
[1732809859114,0.009865,95286.0,95285.0,0.00656509]
[1732809859369,0.104943,95290.0,95285.0,0.11151309]
[1732809859586,0.104943,95290.0,95286.0,0.01050358]
[1732809859802,0.209879,95293.0,95281.0,0.209904]
[1732809859803,0.209879,95293.0,95287.0,0.01706867]
[1732809860020,0.209883,95291.0,95282.0,0.01312948]
[1732809860240,0.209883,95291.0,95283.0,0.03019737]
[1732809860454,0.004,95286.0,95284.0,0.03019737]
[1732809860674,0.104946,95287.0,95285.0,0.01706789]
[1732809860898,0.209885,95290.0,95284.0,0.01312948]
[1732809861131,0.209885,95290.0,95281.0,0.10284521]
[1732809861132,0.104945,95288.0,95287.0,0.001]
[1732809861379,0.104945,95288.0,95287.0,0.01806799]
[1732809862312,0.104945,95288.0,95287.0,0.01706799]
[1732809863181,0.15770938,95288.0,95287.0,0.01706799]
[1732809863401,0.15770938,95288.0,95287.0,0.00656461]
[1732809866632,0.15770938,95288.0,95287.0,0.01706846]
[1732809866877,0.15770938,95288.0,95287.0,0.01706851]
[1732809869332,0.15370938,95288.0,95287.0,0.01706851]
[1732809869799,0.15770938,95288.0,95287.0,0.01706851]
[1732809872302,0.104963,95272.0,95267.0,0.104968]
[1732809872552,0.155845,95288.0,95287.0,0.00656491]
[1732809872798,0.155845,95288.0,95268.0,0.11597504]
[1732809872799,0.104957,95277.0,95272.0,0.01312983]
[1732809873046,0.209895,95286.0,95273.0,0.13304388]
[1732809873047,0.209898,95284.0,95273.0,0.13304388]
[1732809873279,0.0509,95288.0,95274.0,0.03019867]
[1732809873519,0.0509,95288.0,95275.0,0.03019867]
[1732809873520,0.209892,95287.0,95275.0,0.03019867]
[1732809873769,0.209913,95278.0,95276.0,0.0301986]
[1732809874011,0.314869,95278.0,95277.0,0.0301986]
[1732809874491,0.314869,95278.0,95277.0,0.01706877]
[1732809874979,0.314869,95278.0,95277.0,0.0301986]
[1732809875220,0.314869,95278.0,95277.0,0.01706877]
[1732809875460,0.104955,95279.0,95277.0,0.01706877]
[1732809875711,0.209901,95283.0,95277.0,0.01706877]
[1732809875712,0.104956,95278.0,95277.0,0.001]
[1732809875969,0.104956,95278.0,95277.0,0.01806867]
[1732809876451,0.003,95287.0,95277.0,0.01806867]
[1732809876452,0.0469,95288.0,95277.0,0.12091388]
[1732809876700,0.1148773,95294.0,95289.0,0.104943]
[1732809876940,0.0099393,95294.0,95290.0,0.11991388]
[1732809877188,0.104931,95301.0,95295.0,0.104936]
[1732809877420,0.1334615,95309.0,95296.0,0.13304234]
[1732809877685,0.0012615,95309.0,95298.0,0.209867]
[1732809877934,0.0012615,95309.0,95299.0,0.11991388]
[1732809878253,0.104931,95300.0,95299.0,0.10284521]
[1732809878511,0.104931,95300.0,95299.0,0.11991031]
[1732809878986,0.104931,95300.0,95299.0,0.11991041]
[1732809879952,0.2107091,95308.0,95299.0,0.11991041]
[1732809880193,0.209849,95307.0,95300.0,0.0170652]
[1732809880434,0.0008611,95308.0,95301.0,0.0170652]
[1732809880670,0.0008611,95308.0,95302.0,0.0170652]
[1732809880901,0.0008611,95308.0,95303.0,0.0170652]
[1732809881174,0.0008611,95308.0,95304.0,0.0170652]
[1732809881415,0.104926,95305.0,95300.0,0.104931]
[1732809881651,0.104927,95304.0,95301.0,0.03019129]
[1732809881893,0.104927,95304.0,95302.0,0.01706464]
[1732809882136,0.104924,95307.0,95303.0,0.01706464]
[1732809882371,0.0008611,95308.0,95304.0,0.01050128]
[1732809882613,0.0008611,95308.0,95305.0,0.10284521]
[1732809882851,0.0008611,95308.0,95306.0,0.0065633]
[1732809883084,0.0008611,95308.0,95307.0,0.01706458]
[1732809883313,0.0018611,95308.0,95307.0,0.01706458]
[1732809883547,0.0008611,95308.0,95307.0,0.01706458]
[1732809883787,0.0018611,95308.0,95307.0,0.01706458]
[1732809884271,0.0008611,95308.0,95307.0,0.01706458]
[1732809884811,0.0018611,95308.0,95307.0,0.01706458]
[1732809885067,0.0018611,95308.0,95307.0,0.22483379]
[1732809885556,0.0018611,95308.0,95307.0,0.23796039]
[1732809886032,0.0018611,95308.0,95307.0,0.23996039]
[1732809886511,0.0008611,95308.0,95307.0,0.23996039]
[1732809886752,0.0008611,95308.0,95307.0,0.24296039]
[1732809886978,0.0008611,95308.0,95307.0,0.23996039]
[1732809887199,0.0008611,95308.0,95307.0,0.23796039]
[1732809887427,0.0008611,95308.0,95307.0,0.24496039]
[1732809887654,0.0008611,95308.0,95307.0,0.24896039]
[1732809889299,0.0008611,95308.0,95307.0,0.22927049]
[1732809889516,0.0012615,95309.0,95308.0,0.104922]
[1732809889744,0.0012615,95309.0,95308.0,0.22482939]
[1732809890703,0.0012615,95309.0,95308.0,0.31881217]
[1732809890951,0.0012615,95309.0,95308.0,0.23082939]
[1732809891413,0.0012615,95309.0,95308.0,0.23482939]
[1732809891653,0.0012615,95309.0,95308.0,0.32884175]
[1732809891895,0.0012615,95309.0,95308.0,0.32484175]
[1732809892131,0.0012615,95309.0,95308.0,0.37682708]
[1732809892388,0.0012615,95309.0,95308.0,0.23582939]
[1732809892635,0.0012615,95309.0,95308.0,0.28152939]
[1732809892910,6e-05,95315.0,95308.0,0.28152939]
[1732809892911,6e-05,95315.0,95314.0,0.104916]
[1732809893152,6e-05,95315.0,95314.0,0.22482339]
[1732809893395,6e-05,95315.0,95314.0,0.45979809]
[1732809894111,6e-05,95315.0,95314.0,0.45974296]
[1732809894349,6e-05,95315.0,95314.0,0.42099133]
[1732809894588,6e-05,95315.0,95314.0,0.23082339]
[1732809894815,6e-05,95315.0,95314.0,0.42699133]
[1732809895268,6e-05,95315.0,95314.0,0.23082339]
[1732809895749,6e-05,95315.0,95314.0,0.23082002]
[1732809896218,6e-05,95315.0,95314.0,0.23482002]
[1732809899258,6e-05,95315.0,95314.0,0.21776121]
[1732809899479,0.104975,95315.0,95314.0,0.02705947]
[1732809900210,0.104975,95315.0,95314.0,0.01656133]
[1732809900703,0.183475,95315.0,95314.0,0.01]
[1732809900963,0.232975,95315.0,95314.0,0.006]
[1732809901193,0.232975,95315.0,95307.0,0.01484711]
[1732809901194,0.104922,95308.0,95307.0,0.01484711]
[1732809901412,0.23508638,95308.0,95307.0,0.01484711]
[1732809901641,0.233222,95308.0,95307.0,0.01484711]
[1732809902829,0.233222,95308.0,95307.0,0.0017222]
[1732809904313,0.48606721,95308.0,95307.0,0.0017222]
[1732809904795,0.236222,95308.0,95307.0,0.0027222]
[1732809906618,0.236222,95308.0,95307.0,0.0017222]
[1732809906619,0.233222,95308.0,95307.0,0.0017222]
[1732809906864,0.236222,95308.0,95307.0,0.0027222]
[1732809907098,0.236222,95308.0,95307.0,0.0017222]
[1732809907099,0.48606721,95308.0,95307.0,0.0017222]
[1732809907829,0.48706721,95308.0,95307.0,0.0017222]
[1732809907831,0.48606721,95308.0,95307.0,0.0017222]
[1732809908051,0.48606721,95308.0,95307.0,0.0027222]
[1732809908309,0.386222,95308.0,95307.0,0.0027222]
[1732809908550,0.386222,95308.0,95288.0,0.00028023]
[1732809908551,0.2783,95308.0,95288.0,0.00090542]
[1732809908797,0.00186438,95307.0,95289.0,0.0074695]
[1732809909041,0.00186438,95307.0,95287.0,0.0017222]
[1732809909042,0.104944,95289.0,95287.0,0.0017222]
[1732809909281,0.209861,95301.0,95288.0,0.00656411]
[1732809909560,0.2783,95308.0,95287.0,0.0017222]
[1732809909561,0.104943,95289.0,95287.0,0.0017222]
[1732809909788,0.00186438,95300.0,95294.0,0.104937]
[1732809909789,0.314796,95300.0,95294.0,0.104937]
[1732809910016,0.236222,95308.0,95307.0,0.001]
[1732809910240,0.236222,95308.0,95295.0,0.00656405]
[1732809910241,0.10493,95302.0,95295.0,0.209874]
[1732809910452,0.104929,95303.0,95297.0,0.104934]
[1732809910692,0.003,95301.0,95298.0,0.00656353]
[1732809910922,0.003,95301.0,95299.0,0.00656353]
[1732809911193,0.003,95301.0,95300.0,0.00656353]
[1732809911455,0.209833,95314.0,95301.0,0.209861]
[1732809911678,0.209833,95314.0,95287.0,0.0148773]
[1732809911679,0.002,95307.0,95306.0,0.104925]
[1732809911894,0.002,95307.0,95306.0,0.00656309]
[1732809912137,0.00186438,95312.0,95306.0,0.00656309]
[1732809912360,0.00186438,95312.0,95302.0,0.10284521]
[1732809912361,0.104922,95309.0,95307.0,0.00656309]
[1732809912588,0.0009211,95315.0,95302.0,0.11597139]
[1732809912589,0.1058361,95315.0,95308.0,0.00656309]
[1732809912818,0.00278548,95315.0,95309.0,0.00656309]
[1732809913038,0.00278548,95315.0,95310.0,0.00656309]
[1732809913281,0.00278548,95315.0,95306.0,0.31269321]
[1732809913282,0.104917,95313.0,95311.0,0.00656309]
[1732809913501,0.00278548,95315.0,95312.0,0.00656309]
[1732809913502,0.1058361,95315.0,95312.0,0.00656309]
[1732809913737,0.1058361,95315.0,95313.0,0.00656309]
[1732809913738,0.104916,95314.0,95313.0,0.00656309]
[1732809914937,0.00578548,95315.0,95313.0,0.11147909]
[1732809914938,0.0009211,95315.0,95313.0,0.11147909]
[1732809915166,0.0009211,95315.0,95310.0,0.20984]
[1732809915167,0.0009211,95315.0,95314.0,0.1094083]
[1732809915402,0.0009211,95315.0,95314.0,0.104916]
[1732809916355,0.003,95314.0,95313.0,0.104917]
[1732809916611,0.003,95314.0,95308.0,0.209845]
[1732809916612,0.003,95314.0,95309.0,0.013124]
[1732809916851,0.003,95314.0,95313.0,0.104917]
[1732809917071,0.003,95314.0,95310.0,0.10284521]
[1732809917529,0.003,95314.0,95313.0,0.104917]
[1732809917746,0.0009211,95315.0,95314.0,0.003]
[1732809918197,0.0009211,95315.0,95311.0,0.209839]
[1732809918198,0.0009211,95315.0,95313.0,0.104917]
[1732809918676,0.0009211,95315.0,95314.0,0.01049971]
[1732809918908,0.0009211,95315.0,95314.0,0.11541571]
[1732809920386,0.0009211,95315.0,95314.0,0.12141571]
[1732809920629,0.0009211,95315.0,95314.0,0.01649971]
[1732809920870,0.0009211,95315.0,95314.0,0.22426092]
[1732809921341,0.0103567,95329.0,95314.0,0.12234492]
[1732809921586,0.0103567,95329.0,95328.0,0.1049]
[1732809921825,0.0004,95329.0,95328.0,0.21824492]
[1732809922064,0.0004,95329.0,95328.0,0.21824268]
[1732809922576,0.0004,95329.0,95328.0,0.23136452]
[1732809922815,0.0004,95329.0,95328.0,0.21824268]
[1732809923127,0.0014,95329.0,95328.0,0.21824268]
[1732809923358,0.0004,95329.0,95328.0,0.21824268]
[1732809923633,0.0014,95329.0,95328.0,0.21824268]
[1732809924307,0.0014,95329.0,95328.0,0.32540417]
[1732809924538,0.0014,95329.0,95328.0,0.23136452]
[1732809924807,0.0014,95329.0,95328.0,0.37237428]
[1732809925023,0.0014,95329.0,95328.0,0.23964232]
[1732809925238,0.0014,95329.0,95328.0,0.37237187]
[1732809925465,0.0014,95329.0,95328.0,0.38059338]
[1732809925700,0.0004,95329.0,95328.0,0.38359338]
[1732809925922,0.0004,95329.0,95328.0,0.38759338]
[1732809927082,0.0004,95329.0,95328.0,0.37937045]
[1732809927307,0.0004,95329.0,95328.0,0.25314343]
[1732809927789,0.0004,95329.0,95328.0,0.24492355]
[1732809928660,0.0004,95329.0,95328.0,0.25807276]
[1732809929616,0.0004,95329.0,95328.0,0.35202416]
[1732809929847,0.0004,95329.0,95328.0,0.24495171]
[1732809930282,0.0004,95329.0,95328.0,0.33890311]
[1732809931288,0.0004,95329.0,95328.0,0.24495171]
[1732809931514,0.0004,95329.0,95328.0,0.2318025]
[1732809931768,0.0815,95329.0,95328.0,0.02405729]
[1732809932020,0.0815,95329.0,95328.0,0.01356045]
[1732809932021,0.186399,95329.0,95328.0,0.01356045]
[1732809932255,0.18826338,95329.0,95328.0,0.01356045]
[1732809932687,0.18826338,95329.0,95328.0,0.007]
[1732809932905,0.18826338,95329.0,95328.0,0.01356177]
[1732809933121,0.18912448,95329.0,95328.0,0.01356177]
[1732809933372,0.18912448,95329.0,95328.0,0.00656177]
[1732809933591,0.0823611,95329.0,95328.0,0.11246177]
[1732809933816,0.0012611,95329.0,95328.0,0.22580552]
[1732809934746,0.0012611,95329.0,95328.0,0.22780552]
[1732809934983,0.0012611,95329.0,95328.0,0.22680552]
[1732809935229,0.0012611,95329.0,95328.0,0.23992645]
[1732809935448,0.0012611,95329.0,95328.0,0.22980552]
[1732809936390,0.079,95339.0,95338.0,0.104889]
[1732809936608,0.079,95339.0,95338.0,0.12194931]
[1732809937745,0.079,95339.0,95338.0,0.01706031]
[1732809937984,0.079,95339.0,95338.0,0.12194931]
[1732809939626,0.079,95339.0,95338.0,0.01706031]
[1732809939852,0.079,95339.0,95338.0,0.12194931]
[1732809941424,0.079,95339.0,95338.0,0.01706031]
[1732809941673,0.079,95339.0,95338.0,0.12194931]
[1732809942394,0.079,95339.0,95338.0,0.12194623]
[1732809942839,0.079,95339.0,95338.0,0.13506718]
[1732809944200,0.079,95339.0,95338.0,0.03017818]
[1732809945122,0.079,95339.0,95338.0,0.13506718]
[1732809945352,0.079,95339.0,95338.0,0.03017818]
[1732809945599,0.23185238,95339.0,95338.0,0.03017818]
[1732809945819,0.2308491,95339.0,95338.0,0.01705723]
[1732809946037,0.2308491,95339.0,95338.0,0.02558694]
[1732809946780,0.2308491,95339.0,95338.0,0.03214802]
[1732809947008,0.2308491,95339.0,95338.0,0.02558694]
[1732809948377,0.2308491,95339.0,95338.0,0.03214815]
[1732809948688,0.2308491,95339.0,95338.0,0.04527051]
[1732809949089,0.2308491,95339.0,95338.0,0.02558694]
[1732809949315,0.0008611,95339.0,95338.0,0.13047594]
[1732809950610,0.0008611,95339.0,95338.0,0.13051594]
[1732809951048,0.0008611,95339.0,95338.0,0.15839341]
[1732809951275,0.0008611,95339.0,95338.0,0.15015776]
[1732809951503,0.00186438,95345.0,95338.0,0.04526876]
[1732809951747,0.104884,95344.0,95340.0,0.00825445]
[1732809951973,0.00186438,95343.0,95341.0,0.04530876]
[1732809952228,0.00186438,95343.0,95342.0,0.03017844]
[1732809952440,0.00186438,95343.0,95342.0,0.0453075]
[1732809952676,0.10674838,95343.0,95342.0,0.0452675]
[1732809952894,0.00186438,95343.0,95342.0,0.0453075]
[1732809953132,0.00186438,95345.0,95342.0,0.03870699]
[1732809953348,0.00186438,95345.0,95340.0,0.00825416]
[1732809953349,0.104884,95343.0,95340.0,0.00825416]
[1732809953654,0.00186438,95345.0,95341.0,0.03870706]
[1732809953917,0.104883,95344.0,95342.0,0.03870706]
[1732809954130,0.104883,95344.0,95343.0,0.02558602]
[1732809954355,0.00186438,95345.0,95343.0,0.02558602]
[1732809954588,0.104883,95344.0,95340.0,0.104927]
[1732809954811,0.00186438,95345.0,95341.0,0.02558593]
[1732809955037,0.104883,95344.0,95341.0,0.00852865]
[1732809955288,0.10674638,95345.0,95342.0,0.02558595]
[1732809955531,0.104882,95345.0,95343.0,0.02558595]
[1732809955753,0.0831,95346.0,95344.0,0.02558595]
[1732809955996,0.104882,95345.0,95341.0,4e-05]
[1732809956205,0.104882,95345.0,95342.0,0.0255858]
[1732809956456,0.104882,95345.0,95341.0,4e-05]
[1732809956457,0.104882,95345.0,95343.0,0.0255858]
[1732809956702,0.104882,95345.0,95344.0,0.0255858]
[1732809956914,0.0831,95346.0,95344.0,0.0255858]
[1732809957163,0.187981,95346.0,95345.0,0.0387067]
[1732809961119,0.187981,95346.0,95345.0,0.03870722]
[1732809962162,0.0831,95346.0,95345.0,0.14358922]
[1732809962417,0.0815,95353.0,95348.0,0.104878]
[1732809962643,0.0004,95349.0,95348.0,0.14358522]
[1732809963093,0.0004,95349.0,95348.0,0.15014521]
[1732809963326,0.0004,95349.0,95348.0,0.35094045]
[1732809963544,0.0004,95349.0,95348.0,0.16272187]
[1732809964036,0.0004,95349.0,95348.0,0.05784241]
[1732809964275,0.0004,95349.0,95348.0,0.15616079]
[1732809964530,0.0004,95349.0,95348.0,0.34659141]
[1732809964756,0.0004,95349.0,95348.0,0.15816079]
[1732809965248,0.0004,95349.0,95348.0,0.14503965]
[1732809965466,0.0004,95349.0,95348.0,0.1532923]
[1732809965682,0.0004,95349.0,95348.0,0.1402243]
[1732809965903,0.0004,95349.0,95348.0,0.12798217]
[1732809966127,0.0004,95349.0,95348.0,0.12766332]
[1732809966361,0.0004,95349.0,95348.0,0.01457666]
[1732809966595,0.23447997,95349.0,95348.0,0.01457666]
[1732809966848,0.23447997,95349.0,95348.0,0.002]
[1732809968321,0.104892,95336.0,95335.0,0.09425844]
[1732809968561,0.104892,95336.0,95329.0,0.0017238]
[1732809968562,0.104898,95330.0,95329.0,0.0017238]
[1732809968790,0.10676238,95330.0,95329.0,0.0017238]
[1732809971106,0.10776238,95330.0,95329.0,0.0017238]
[1732809974174,0.23376238,95330.0,95329.0,0.0017238]
[1732809974414,0.231898,95330.0,95329.0,0.0017238]
[1732809982551,0.231898,95330.0,95329.0,0.00828594]
[1732809983794,0.230898,95330.0,95329.0,0.00828594]
[1732809983972,0.231898,95330.0,95329.0,0.00828572]
[1732809984415,0.230898,95330.0,95329.0,0.00828572]
[1732809985313,0.230898,95330.0,95329.0,0.01878473]